fUSD/lending_fUSD_20240211
["ID","MTS","AMOUNT","RATE_DAILY","PERIOD"]
[313723018,1707612639617,-170.07,0.00027684,2]
[313723019,1707612639626,-9513.64338932,0.000279,2]
[313723020,1707612639695,-6170.57082958,0.000279,2]
[313723024,1707612643482,-15642.9595811,0.000279,2]
[313723025,1707612643492,-2500.0,0.000279,2]
[313723026,1707612643501,-8756.56742722,0.00028,2]
[313723027,1707612643513,-1452.68179435,0.00028,2]
[313723028,1707612643524,-4779.188,0.00028,2]
[313723029,1707612643595,-398.63036082,0.00028,2]
[313723030,1707612643606,-14599.50949962,0.00028,2]
[313723043,1707612646870,-281.9797924,0.00027899,2]
[313723044,1707612646882,-6224.56636831,0.00028,2]
[313723045,1707612646894,-26500.22921038,0.00028,2]
[313723047,1707612811844,3134.76429599,0.00021846,2]
[313723048,1707612846881,155.0,0.00021846,2]
[313723049,1707612847711,155.0,0.00021846,2]
[313723050,1707612848695,1001.66357532,0.0002,2]
[313723051,1707612851951,155.0,0.00021846,2]
[313723052,1707612853676,155.0,0.00021846,2]
[313723053,1707612860893,155.0,0.00021846,2]
[313723054,1707612863718,186.64806482,0.00021846,2]
[313723055,1707612867962,155.0,0.00021846,2]
[313723056,1707612868032,155.0,0.00021846,2]
[313723057,1707612887922,156.01643056,0.00021846,2]
[313723058,1707612901596,160.23374209,0.00021846,2]
[313723059,1707612904996,155.13742099,0.00021846,2]
[313723060,1707612908093,726.35,0.0002051,2]
[313723061,1707612914019,283.92096419,0.00021846,2]
[313723062,1707612917673,155.14418237,0.00021846,2]
[313723063,1707612919769,1102.12865025,0.00021846,2]
[313723064,1707612924362,155.0,0.00021846,2]
[313723065,1707612937999,155.0,0.00021846,2]
[313723066,1707612954009,155.0,0.00021846,2]
[313723067,1707612974155,190.78931201,0.00021846,2]
[313723068,1707612993344,155.0,0.00021846,2]
[313723069,1707613009340,155.20448562,0.00021846,2]
[313723070,1707613019596,200.0,0.00021909,2]
[313723071,1707613078297,250.0,0.00021824,2]
[313723072,1707613091346,177.16,0.00022,2]
[313723073,1707613102633,10000.0,0.000219,3]
[313723074,1707613103244,258.33,0.00022,2]
[313723075,1707613110276,10000.0,0.000219,3]
[313723076,1707613124893,487.11,0.00021918,2]
[313723077,1707613188316,153.33,0.00021801,2]
[313723078,1707613188549,153.33,0.00021991,2]
[313723079,1707613219711,695.97,0.00021594,2]
[313723080,1707613233063,500.0,0.00021581,2]
[313723081,1707613244719,1771.45,0.00021606,2]
[313723082,1707613265516,200.0,0.00021638,2]
[313723083,1707613306963,2000.0,0.00021631,2]
[313723084,1707613313877,23900.0,0.00021631,2]
[313723085,1707613345787,165.51,0.00021645,2]
[313723086,1707613367355,150.0,0.00021645,2]
[313723087,1707613387539,1827.86,0.00021918,2]
[313723088,1707613391919,2705.0,0.00021628,2]
[313723089,1707613402183,155.72474861,0.00022004,2]
[313723090,1707613407472,170.06,0.00021641,2]
[313723091,1707613408288,494.42411151,0.000221,2]
[313723092,1707613414318,734.17547666,0.000221,2]
[313723093,1707613423470,155.0,0.000221,2]
[313723094,1707613426320,734.17547666,0.00021,2]
[313723095,1707613427343,3596.28,0.00021674,2]
[313723096,1707613448316,734.17547666,0.00021,2]
[313723097,1707613448880,-155.0,0.00022101,2]
[313723098,1707613448909,-1582.93358569,0.00022101,2]
[313723099,1707613454097,1907.15,0.00021683,2]
[313723100,1707613468323,734.17547666,0.00021,2]
[313723101,1707613478668,774.23,0.00019785,2]
[313723102,1707613488314,702.96739377,0.00021,2]
[313723103,1707613488893,840.0,0.00021678,2]
[313723104,1707613493426,300.0,0.00021674,2]
[313723105,1707613512977,1680.93,0.00021682,2]
[313723106,1707613537465,250.0,0.00021696,2]
[313723107,1707613578370,2210.96,0.000217,2]
[313723117,1707613674662,153.88,0.00021854,2]
[313723118,1707613681753,150.0,0.00022,2]
[313723119,1707613688505,150.0,0.00022,2]
[313723120,1707613692351,347.98,0.00021689,2]
[313723126,1707613731930,2987.57,0.00021679,2]
[313723127,1707613733370,177.16,0.00022,2]
[313723128,1707613743960,516.0,0.00021999,2]
[313723146,1707613799173,12971.82,0.00021686,2]
[313723147,1707613800512,2000.0,0.00021666,2]
[313723166,1707613831929,-241.0,0.00022041,2]
[313723168,1707613831938,-1226.240241,0.00022042,2]
[313723170,1707613831947,-386.48141651,0.00022043,2]
[313723172,1707613831957,-774.23,0.00022049,2]
[313723174,1707613831966,-153.88,0.00022082,2]
[313723176,1707613831975,-3135.93949382,0.00022115,2]
[313723178,1707613831985,-722.97,0.00022116,2]
[313723180,1707613831994,-718.18,0.00022117,2]
[313723182,1707613832003,-718.18,0.00022119,2]
[313723185,1707613832017,-729.82,0.0002212,2]
[313723186,1707613832026,-150.0,0.00022121,2]
[313723188,1707613832035,-732.98,0.00022122,2]
[313723190,1707613832044,-499.99,0.00022122,2]
[313723192,1707613832054,-727.86,0.00022124,2]
[313723195,1707613832064,-715.81,0.00022125,2]
[313723197,1707613832073,-165.30463324,0.000222,2]
[313723199,1707613832081,-153.88,0.00022309,2]
[313723200,1707613832090,-309.9782154,0.00022425,2]
[313723203,1707613832104,-356.2,0.00022425,2]
[313723205,1707613832115,-56.4017846,0.00022425,2]
[313723207,1707613832124,-255.00795976,0.00022427,2]
[313723210,1707613832136,-454.89204024,0.00022427,2]
[313723211,1707613832145,-47.49759605,0.00022502,2]
[313723214,1707613832156,-119.53240395,0.00022502,2]
[313723216,1707613832165,-153.88,0.00022537,2]
[313723218,1707613832174,-150.0,0.00022548,2]
[313723220,1707613832183,-177.16,0.00022548,2]
[313723222,1707613832192,-734.95,0.00022714,2]
[313723224,1707613832201,-170.06,0.00022723,2]
[313723226,1707613832210,-153.88,0.00022765,2]
[313723228,1707613832218,-354.4501258,0.00022769,2]
[313723230,1707613832231,-2954.67761916,0.00022769,2]
[313723233,1707613832251,-1046.87225504,0.00022769,2]
[313723235,1707613832260,-720.45,0.00022784,2]
[313723237,1707613832269,-500.0,0.00022816,2]
[313723239,1707613832278,-205.0,0.00022818,2]
[313723241,1707613832287,-206.0,0.00022818,2]
[313723243,1707613832297,-327.5629,0.00022898,2]
[313723245,1707613832306,-930.9949,0.00022898,2]
[313723247,1707613832315,-300.0,0.00022898,2]
[313723249,1707613832324,-789.7785,0.00022898,2]
[313723250,1707613832333,-967.7218,0.00022898,2]
[313723252,1707613832342,-1000.0,0.00022899,2]
[313723254,1707613832351,-1357.72230362,0.00022899,2]
[313723256,1707613832360,-1463.9937913,0.00022899,2]
[313723258,1707613832370,-4904.63398477,0.000229,2]
[313723260,1707613832379,-155.7247486,0.000229,2]
[313723262,1707613832388,-182.48395622,0.000229,2]
[313723264,1707613832398,-178.09096941,0.000229,2]
[313723265,1707613832408,-2039.2393199,0.000229,2]
[313723267,1707613832417,-1279.01018968,0.000229,2]
[313723269,1707613832426,-10534.75779479,0.000229,2]
[313723270,1707613832435,-4014.47814149,0.000229,2]
[313723271,1707613832444,-2380.67995837,0.000229,2]
[313723272,1707613832453,-838.46823198,0.000229,2]
[313723273,1707613832464,-164.79,0.00022911,2]
[313723274,1707613832473,-153.88,0.00022993,2]
[313723276,1707613832482,-728.99082072,0.00022996,2]
[313723278,1707613832491,-155.0,0.00022996,2]
[313723279,1707613832500,-497.23029497,0.00022997,2]
[313723280,1707613832509,-158.0,0.00022997,2]
[313723281,1707613832518,-155.0,0.00022997,2]
[313723282,1707613832527,-4560.00907521,0.00022997,2]
[313723283,1707613832536,-15451.45273242,0.00022997,2]
[313723284,1707613832545,-459.94399736,0.00022998,3]
[313723285,1707613832554,-274143.13664605,0.00022999,2]
[313723286,1707613832606,-619.10457445,0.00022999,2]
[313723287,1707613832618,-3359.67171,0.00022999,2]
[313723288,1707613832650,-395.79480765,0.00022999,2]
[313723289,1707613832661,-1341.53946258,0.00022999,2]
[313723290,1707613832672,-1650.05051034,0.00022999,2]
[313723291,1707613832683,-412.77292295,0.00022999,2]
[313723292,1707613832699,-17181.58984109,0.00022999,2]
[313723293,1707613832711,-1579.86792441,0.00022999,2]
[313723295,1707613837592,-500.0,0.00022998,2]
[313723296,1707613837601,-513.22746103,0.00022998,2]
[313723297,1707613837611,-274.32803539,0.00022999,2]
[313723305,1707613838053,-20.9565368,0.00022999,2]
[313723306,1707613839543,-123850.84803317,0.00022999,2]
[313723307,1707613839553,-551507.4190806,0.00022999,2]
[313723308,1707613839562,-212.83179603,0.00022999,2]
[313723309,1707613839571,-162.3492961,0.00022999,2]
[313723310,1707613839580,-500.0,0.00022999,2]
[313723311,1707613839589,-500.0,0.00022999,2]
[313723312,1707613839598,-500.0,0.00022999,2]
[313723313,1707613839608,-500.0,0.00022999,2]
[313723314,1707613839617,-500.0,0.00022999,2]
[313723315,1707613839626,-283.44869038,0.00022999,2]
[313723316,1707613839634,-500.0,0.00022999,2]
[313723317,1707613839643,-450.07358528,0.00022999,2]
[313723318,1707613839654,-243.883895,0.00022999,2]
[313723319,1707613839663,-300.47602795,0.00022999,2]
[313723320,1707613839673,-500.0,0.00022999,2]
[313723321,1707613839682,-500.0,0.00022999,2]
[313723322,1707613839691,-573.19509479,0.00022999,2]
[313723323,1707613839701,-500.0,0.00022999,2]
[313723324,1707613839713,-212.98767377,0.00022999,2]
[313723325,1707613839723,-350.0,0.00022999,2]
[313723326,1707613839733,-305.5661459,0.00022999,2]
[313723327,1707613839742,-150.0,0.00022999,2]
[313723328,1707613839752,-150.0,0.00022999,2]
[313723329,1707613839761,-150.0,0.00022999,2]
[313723330,1707613839770,-150.0,0.00022999,2]
[313723331,1707613839779,-150.0,0.00022999,2]
[313723332,1707613839788,-150.0,0.00022999,2]
[313723333,1707613839984,-150.0,0.00022999,2]
[313723334,1707613839997,-150.0,0.00022999,2]
[313723335,1707613840007,-150.0,0.00022999,2]
[313723336,1707613840019,-150.0,0.00022999,2]
[313723337,1707613840028,-150.0,0.00022999,2]
[313723338,1707613840037,-150.0,0.00022999,2]
[313723339,1707613840046,-150.0,0.00022999,2]
[313723340,1707613840056,-150.0,0.00022999,2]
[313723341,1707613840065,-7167252.34423109,0.00023,2]
[313723342,1707613840074,-1339870.00033401,0.00023,2]
[313723343,1707613840083,-150.0,0.00023,2]
[313723344,1707613840093,-500.0,0.00023014,2]
[313723345,1707613840102,-150.97,0.00023067,2]
[313723346,1707613840112,-150.0,0.00023096,2]
[313723347,1707613840121,-177.16,0.00023096,2]
[313723348,1707613840130,-1771.45,0.0002325,2]
[313723349,1707613840139,-554.24,0.0002327,2]
[313723350,1707613840149,-4904.63398474,0.00023536,2]
[313723351,1707613840158,-1463.99379126,0.00023613,2]
[313723352,1707613840167,-225.73899615,0.00023644,2]
[313723353,1707613840176,-177.16,0.00023644,2]
[313723354,1707613840186,-170.06,0.00023805,2]
[313723355,1707613840195,-174.62,0.00023822,2]
[313723356,1707613840204,-202.08012209,0.00024,2]
[313723357,1707613840213,-517.67135296,0.00024,2]
[313723358,1707613840222,-4904.63398474,0.00024173,2]
[313723359,1707613840231,-233.27069741,0.00024192,2]
[313723360,1707613840242,-774.23,0.00024312,2]
[313723361,1707613840251,-1463.99379126,0.00024328,2]
[313723362,1707613840261,-210.0,0.00024334,2]
[313723363,1707613840270,-4741.33,0.00024384,2]
[313723364,1707613840278,-3184.07,0.00024384,2]
[313723365,1707613840289,-840.0,0.00024388,2]
[313723366,1707613840299,-554.24,0.00024433,2]
[313723367,1707613840308,-200.0,0.00024647,2]
[313723368,1707613840317,-250.0,0.00024658,2]
[313723369,1707613840327,-1000.0,0.000247,2]
[313723370,1707613840336,-151.09808341,0.0002474,2]
[313723371,1707613840346,-4904.63398474,0.00024809,2]
[313723372,1707613840355,-170.06,0.00024887,2]
[313723373,1707613840364,-1771.45,0.00024894,2]
[313723374,1707613840375,-305.01610739,0.00025,2]
[313723375,1707613840384,-622.49852888,0.00025,2]
[313723376,1707613840393,-155.0,0.00025,2]
[313723377,1707613840402,-697.48549167,0.00025,2]
[313723378,1707613840411,-937.98396588,0.00025,2]
[313723379,1707613840420,-168.22521568,0.00025,2]
[313723380,1707613840429,-1908.91510247,0.00025,2]
[313723381,1707613840438,-1591.41795958,0.00025,2]
[313723382,1707613840448,-945.84734194,0.00025,2]
[313723383,1707613840457,-18705.30158929,0.00025,4]
[313723384,1707613840466,-1255.07330697,0.00025,2]
[313723385,1707613840475,-159.5379741,0.00025,2]
[313723386,1707613840484,-203.06443632,0.00025,2]
[313723387,1707613840493,-350.0,0.00025,3]
[313723388,1707613840502,-3398.0,0.00025,2]
[313723389,1707613840512,-3000.0,0.00025,2]
[313723390,1707613840521,-17049.0,0.00025,2]
[313723391,1707613840530,-205.0,0.00025006,5]
[313723392,1707613840540,-3000.0,0.0002501,2]
[313723393,1707613840550,-3000.0,0.0002502,2]
[313723394,1707613840558,-3000.0,0.0002503,2]
[313723395,1707613840567,-3000.0,0.0002504,2]
[313723396,1707613840576,-1463.99379126,0.00025042,2]
[313723397,1707613840585,-3000.0,0.0002505,2]
[313723398,1707613840594,-3000.0,0.0002506,2]
[313723399,1707613840604,-3000.0,0.0002507,2]
[313723400,1707613840613,-3000.0,0.0002508,2]
[313723401,1707613840622,-3000.0,0.0002509,2]
[313723402,1707613840633,-3000.0,0.000251,2]
[313723403,1707613840679,-3000.0,0.0002511,2]
[313723404,1707613840689,-3000.0,0.0002512,2]
[313723405,1707613840698,-3000.0,0.0002513,2]
[313723406,1707613840707,-3000.0,0.0002514,2]
[313723407,1707613840717,-3000.0,0.0002515,2]
[313723408,1707613840727,-3000.0,0.0002516,2]
[313723409,1707613840736,-3000.0,0.0002517,2]
[313723410,1707613840745,-3336.174738,0.0002518,2]
[313723411,1707613840755,-1000.0,0.000252,2]
[313723412,1707613840765,-4904.63398474,0.00025445,2]
[313723413,1707613840774,-554.24,0.00025597,2]
[313723414,1707613840783,-157.9404551,0.00025693,2]
[313723415,1707613840792,-309.95731837,0.00025693,2]
[313723416,1707613840801,-1463.99379126,0.00025757,2]
[313723417,1707613840811,-170.06,0.00025969,2]
[313723418,1707613840820,-4904.63398474,0.00026082,2]
[313723419,1707613840829,-1463.99379126,0.00026471,3]
[313723420,1707613840839,-1771.45,0.00026537,2]
[313723421,1707613840848,-774.23,0.00026576,2]
[313723422,1707613840857,-388.06130686,0.000266,2]
[313723423,1707613840867,-4904.63398474,0.00026718,2]
[313723424,1707613840876,-554.24,0.0002676,2]
[313723425,1707613840885,-293.0,0.00026767,2]
[313723426,1707613840894,-17228.77816909,0.000269,2]
[313723427,1707613840903,-400.0,0.00027,3]
[313723428,1707613840912,-840.0,0.00027098,2]
[313723429,1707613840921,-205.0,0.00027193,8]
[313723430,1707613840930,-4904.63398474,0.00027355,2]
[313723431,1707613840939,-200.0,0.00027386,2]
[313723432,1707613840949,-155.0,0.00027397,2]
[313723433,1707613840961,-494.9,0.00027397,2]
[313723434,1707613840970,-1000.0,0.000274,2]
[313723435,1707613840979,-1906.8153196,0.000274,2]
[313723436,1707613840990,-12375.60625799,0.000275,2]
[313723437,1707613840999,-494.9,0.00027556,2]
[313723438,1707613841009,-494.9,0.00027714,2]
[313723439,1707613841024,-154.24786,0.0002772,2]
[313723440,1707613841035,-542.36463896,0.0002772,2]
[313723441,1707613841046,-494.9,0.00027872,2]
[313723442,1707613841057,-55572.5208,0.000279,2]
[313723443,1707613841067,-1000.0,0.000279,2]
[313723444,1707613841077,-554.24,0.00027924,2]
[313723445,1707613841086,-1281.47920539,0.00027938,2]
[313723446,1707613841099,-4904.63398474,0.00027991,2]
[313723447,1707613841108,-155.0,0.00027998,2]
[313723448,1707613841117,-639.80038613,0.00027998,2]
[313723449,1707613841127,-277.29078818,0.00027999,2]
[313723451,1707613841136,-221.12781587,0.00027999,2]
[313723453,1707613841145,-155.62316996,0.00027999,2]
[313723455,1707613841154,-535.47054008,0.00028,2]
[313723457,1707613841163,-200.0,0.00028,2]
[313723459,1707613841172,-2606.90049886,0.00028,2]
[313723461,1707613841181,-511.82527856,0.00028,2]
[313723463,1707613841190,-155.0,0.00028,2]
[313723465,1707613841199,-155.0,0.00028,2]
[313723467,1707613841208,-640.12320373,0.00028,2]
[313723469,1707613841217,-237432.89148321,0.00028,2]
[313723471,1707613841226,-200.0,0.00028,2]
[313723472,1707613841235,-494.9,0.0002803,2]
[313723474,1707613841244,-1771.45,0.00028181,2]
[313723476,1707613841254,-494.9,0.00028189,2]
[313723478,1707613841262,-8142.0,0.00028213,2]
[313723480,1707613841271,-494.9,0.00028347,2]
[313723482,1707613841280,-150.0,0.000284,2]
[313723483,1707613841289,-500.0,0.000284,2]
[313723484,1707613841298,-500.0,0.000284,2]
[313723485,1707613841307,-500.0,0.000284,2]
[313723486,1707613841317,-920.4,0.000284,2]
[313723487,1707613841327,-343.0,0.000284,2]
[313723488,1707613841336,-426.0,0.000284,2]
[313723489,1707613841345,-433.0,0.000284,2]
[313723490,1707613841355,-1281.4792054,0.00028422,2]
[313723491,1707613841364,-494.9,0.00028505,2]
[313723492,1707613841374,-4904.63398474,0.00028627,2]
[313723493,1707613841383,-494.9,0.00028664,2]
[313723494,1707613841392,-155.0,0.00028767,2]
[313723495,1707613841401,-494.9,0.00028822,2]
[313723496,1707613841411,-774.23,0.0002884,2]
[313723497,1707613841421,-174.62,0.00028878,2]
[313723498,1707613841430,-670.11231505,0.00029,15]
[313723499,1707613841439,-450.0,0.00029,3]
[313723500,1707613841448,-4904.63398474,0.00029264,2]
[313723501,1707613841459,-205.0,0.0002938,12]
[313723502,1707613841469,-195.30006218,0.00029697,2]
[313723503,1707613841478,-200.0,0.00029728,3]
[313723504,1707613841487,-176.39522567,0.000298,2]
[313723505,1707613841497,-840.0,0.00029808,2]
[313723506,1707613841506,-777.34,0.00029815,2]
[313723507,1707613841515,-1771.45,0.00029825,2]
[313723508,1707613841524,-4904.63398474,0.000299,2]
[313723509,1707613841534,-150.1,0.000299,4]
[313723510,1707613841543,-2828.76104625,0.00029905,28]
[313723511,1707613841552,-1925.43008387,0.00029975,2]
[313723512,1707613841562,-4254.69184258,0.00029976,2]
[313723513,1707613841571,-272.21882599,0.0003,5]
[313723514,1707613841580,-9687.39994509,0.0003,2]
[313723515,1707613841590,-3000.0,0.0003,2]
[313723516,1707613841599,-405.5599385,0.0003,4]
[313723517,1707613841607,-448.73493482,0.0003,4]
[313723518,1707613841617,-183.43470318,0.0003,4]
[313723519,1707613841628,-585.639124,0.0003,2]
[313723520,1707613841637,-19139.32910649,0.0003,4]
[313723521,1707613841646,-369.0897773,0.0003,4]
[313723522,1707613841655,-903.25290285,0.0003,4]
[313723523,1707613841665,-155.0,0.0003,4]
[313723524,1707613841674,-817.86462422,0.0003,4]
[313723525,1707613841684,-1816.55563643,0.0003,4]
[313723526,1707613841694,-199.68117382,0.0003,4]
[313723527,1707613841704,-641.58618234,0.0003,2]
[313723528,1707613841714,-3000.0,0.0003,2]
[313723529,1707613841724,-1664.15218,0.0003,2]
[313723530,1707613841733,-1664.15218,0.0003,2]
[313723531,1707613841742,-1664.15218,0.0003,2]
[313723532,1707613841751,-1664.15218,0.0003,2]
[313723533,1707613841762,-1664.15218,0.0003,2]
[313723534,1707613841772,-1664.15219,0.0003,2]
[313723535,1707613841781,-370.99784346,0.0003,2]
[313723536,1707613841790,-153.89,0.0003,2]
[313723537,1707613841799,-153.89,0.0003,2]
[313723538,1707613841808,-205.0,0.0003,2]
[313723539,1707613841818,-3000.0,0.0003001,2]
[313723540,1707613841826,-5467.234947,0.0003002,2]
[313723541,1707613841836,-1000.0,0.000301,2]
[313723542,1707613841845,-200.0,0.00030125,2]
[313723543,1707613841854,-150.0,0.00030137,2]
[313723544,1707613841864,-155.0,0.00030137,2]
[313723545,1707613841873,-347.98,0.00030365,2]
[313723546,1707613841882,-151.0,0.00030554,120]
[313723547,1707613841892,-150.0,0.00030645,7]
[313723548,1707613841901,-302.87,0.00030645,7]
[313723549,1707613841910,-1000.0,0.000307,2]
[313723550,1707613841919,-150.0,0.00030714,2]
[313723551,1707613841928,-367.720734,0.00031,4]
[313723552,1707613841938,-602.2036766,0.00031,7]
[313723553,1707613841947,-500.0,0.00031,3]
[313723554,1707613841956,-2008.16,0.00031,2]
[313723555,1707613841966,-774.23,0.00031104,2]
[313723556,1707613841975,-151.0,0.00031177,30]
[313723557,1707613841984,-150.0,0.00031291,2]
[313723558,1707613841993,-155.0,0.00031507,2]
[313723559,1707613842002,-205.0,0.00031567,15]
[313723560,1707613842012,-200000.0,0.00031615,7]
[313723561,1707613842025,-156.177442,0.00031615,7]
[313723562,1707613842033,-151.0,0.00031615,7]
[313723563,1707613842043,-151.0,0.00031615,7]
[313723564,1707613842054,-984.205735,0.00031615,7]
[313723565,1707613842064,-984.205735,0.00031615,7]
[313723566,1707613842074,-180.0,0.00031644,2]
[313723567,1707613842084,-168.81,0.00031644,2]
[313723568,1707613842094,-150.0,0.00031799,2]
[313723569,1707613842103,-150.0,0.00031799,2]
[313723570,1707613842113,-155.0,0.000318,7]
[313723571,1707613842122,-365919.868091,0.000318,3]
[313723572,1707613842132,-151.0,0.00031814,7]
[313723573,1707613842141,-150.0,0.00031867,2]
[313723574,1707613842151,-13153.45698237,0.00032,4]
[313723575,1707613842161,-150.0,0.00032444,2]
[313723576,1707613842171,-151.0,0.00032463,4]
[313723577,1707613842181,-840.0,0.00032517,2]
[313723578,1707613842191,-2008.16,0.00032535,2]
[313723579,1707613842200,-200.0,0.00032863,2]
[313723580,1707613842211,-1000.0,0.00032876,2]
[313723581,1707613842220,-1000.0,0.00032876,2]
[313723582,1707613842230,-1000.0,0.00032876,2]
[313723583,1707613842239,-1000.0,0.00032876,2]
[313723584,1707613842248,-1000.0,0.00032876,2]
[313723586,1707613842257,-1000.0,0.00032876,2]
[313723588,1707613842267,-1000.0,0.00032876,2]
[313723590,1707613842276,-1000.0,0.00032876,2]
[313723591,1707613842285,-1000.0,0.00032876,2]
[313723592,1707613842295,-1000.0,0.00032876,2]
[313723593,1707613842305,-500.0,0.00032876,2]
[313723594,1707613842314,-500.0,0.00032876,2]
[313723595,1707613842324,-150.1,0.00032877,2]
[313723596,1707613842334,-150.0,0.00032877,30]
[313723597,1707613842344,-150.0,0.00032877,30]
[313723598,1707613842353,-170.07205982,0.00032877,30]
[313723599,1707613842363,-155.0,0.00032877,2]
[313723600,1707613842373,-1147.51307564,0.000329,2]
[313723601,1707613842382,-1000.0,0.000329,2]
[313723602,1707613842391,-153.89,0.000329,2]
[313723603,1707613842400,-153.89,0.000329,2]
[313723604,1707613842410,-153.89,0.000329,2]
[313723605,1707613842419,-153.89,0.000329,2]
[313723606,1707613842429,-545.65411344,0.00033,6]
[313723607,1707613842439,-492.57254288,0.00033,4]
[313723608,1707613842448,-550.0,0.00033,3]
[313723609,1707613842457,-169.0,0.00033,2]
[313723610,1707613842467,-150.0,0.00033021,2]
[313723612,1707613842476,-151.0,0.00033125,2]
[313723614,1707613842485,-152.80258203,0.00033165,2]
[313723616,1707613842495,-500.0,0.00033184,2]
[313723617,1707613842504,-200.0,0.00033184,3]
[313723618,1707613842513,-800.0,0.00033184,2]
[313723619,1707613842522,-774.23,0.00033368,2]
[313723620,1707613842533,-1000.0,0.000334,2]
[313723621,1707613842542,-715.79,0.000335,2]
[313723623,1707613842552,-715.79,0.000335,2]
[313723624,1707613842562,-715.79,0.000335,2]
[313723625,1707613842571,-715.79,0.000335,2]
[313723626,1707613842581,-715.79,0.000335,2]
[313723627,1707613842590,-715.79,0.000335,2]
[313723628,1707613842599,-715.79,0.000335,2]
[313723629,1707613842610,-715.79,0.000335,2]
[313723630,1707613842619,-715.79,0.000335,2]
[313723631,1707613842628,-715.79,0.000335,2]
[313723632,1707613842638,-715.79,0.000335,2]
[313723633,1707613842647,-715.79,0.000335,2]
[313723634,1707613842656,-715.79,0.000335,2]
[313723635,1707613842665,-715.79,0.000335,2]
[313723636,1707613842674,-715.79,0.000335,2]
[313723637,1707613842684,-715.79,0.000335,2]
[313723638,1707613842693,-715.79,0.000335,2]
[313723639,1707613842703,-715.79,0.000335,2]
[313723640,1707613842712,-715.79,0.000335,2]
[313723641,1707613842721,-715.79,0.000335,2]
[313723642,1707613842730,-150.0,0.00033598,2]
[313723643,1707613842740,-205.0,0.00033754,19]
[313723644,1707613842750,-152.59870879,0.000339,2]
[313723645,1707613842759,-152.59870878,0.000339,2]
[313723646,1707613842768,-767.10554147,0.00034,4]
[313723647,1707613842777,-4000.0,0.00034,2]
[313723648,1707613842787,-2008.16,0.0003407,2]
[313723649,1707613842796,-152.59870878,0.00034104,2]
[313723650,1707613842805,-150.0,0.00034175,2]
[313723651,1707613842815,-155.0,0.00034247,2]
[313723652,1707613842824,-150.0,0.00034489,30]
[313723653,1707613842834,-150.0,0.00034489,30]
[313723654,1707613842843,-7999.99,0.0003449,14]
[313723655,1707613842852,-500.0,0.0003449,2]
[313723656,1707613842861,-500.0,0.0003449,2]
[313723657,1707613842871,-500.0,0.0003449,2]
[313723658,1707613842880,-500.0,0.0003449,2]
[313723659,1707613842890,-500.0,0.0003449,2]
[313723660,1707613842899,-500.0,0.0003449,2]
[313723661,1707613842909,-500.0,0.0003449,2]
[313723662,1707613842918,-500.0,0.0003449,2]
[313723663,1707613842927,-500.0,0.0003449,2]
[313723664,1707613842937,-500.0,0.0003449,2]
[313723665,1707613842949,-500.0,0.0003449,2]
[313723666,1707613842959,-500.0,0.0003449,2]
[313723667,1707613842969,-500.0,0.0003449,2]